[Event "19th IPCA WCC 2019"]
[Site "Ruzomberok"]
[Date "2019.07.01"]
[Round "4.15"]
[White "Roehrig, Uwe"]
[Black "Konkolova, Nikola"]
[Result "1-0"]
[ECO "A20"]
[WhiteElo "1802"]
[BlackElo "1518"]
[Annotator "NA"]
[PlyCount "65"]
[EventDate "2019.06.28"]
[EventType "swiss"]
[EventCountry "SVK"]
[SourceTitle "playchess.com"]
[Source "ChessBase"]
[SourceQuality "1"]
[TimeControl "5400+30"]

1. c4 {[%emt 0:00:00]} e5 {[%emt 0:00:00]} 2. g3 {[%emt 0:00:00]} c6 {[%emt 0:01:14]} 3. Bg2 {[%emt 0:00:36]} d5 {[%emt 0:01:23]} 4. Nf3 {[%emt 0:02:01]} e4 {[%emt 0:04:51]} 5. Nd4 {[%emt 0:04:18]} Bc5 {[%emt 0:01:01]} 6. e3 {[%emt 0:03:39]} Bxd4 {[%emt 0:01:28]} 7. exd4 {[%emt 0:00:15]} Qf6 {[%emt 0:05:02]} 8. Qc2 {[%emt 0:03:28]} Qxd4 {[%emt 0:06:22]} 9. cxd5 {[%emt 0:01:16]} Qxd5 {[%emt 0:00:10]} 10. Bxe4 {[%emt 0:00:44]} Qe5 {[%emt 0:00:44]} 11. O-O {[%emt 0:00:49]} Ne7 {[%emt 0:04:02]} 12. Re1 {[%emt 0:01:15]} Qf6 {[%emt 0:02:07]} 13. Nc3 {[%emt 0:02:24]} Be6 {[%emt 0:03:47]} 14. Nb5 {[%emt 0:02:58]} Na6 {[%emt 0:01:36]} 15. Nd6+ {[%emt 0:02:35]} Kd7 {[%emt 0:00:38]} 16. Nxb7 {[%emt 0:00:35]} Kc7 {[%emt 0:02:32]} 17. Na5 {[%emt 0:01:32]} Nb4 {[%emt 0:02:53]} 18. Qc3 {[%emt 0:02:16]} Nxa2 {[%emt 0:02:46]} 19. Qa3 {[%emt 0:03:17]} Nxc1 {[%emt 0:00:34]} 20. Raxc1 {[%emt 0:00:33]} Bd7 {[%emt 0:00:46]} 21. Bg2 {[%emt 0:10:42]} Rhe8 {[%emt 0:03:11]} 22. Nc4 {[%emt 0:01:24]} Nc8 {[%emt 0:03:05]} 23. Qa5+ {[%emt 0:01:09]} Kb7 {[%emt 0:02:43]} 24. Ne5 {[%emt 0:01:53]} Nb6 {[%emt 0:02:13]} 25. Nxd7 {[%emt 0:03:07]} Rxe1+ {[%emt 0:00:27]} 26. Rxe1 {[%emt 0:00:30]} Nxd7 {[%emt 0:00:23]} 27. Qb4+ {[%emt 0:04:08]} Kc7 {[%emt 0:01:48]} 28. Re7 {[%emt 0:00:49]} Rb8 {[%emt 0:02:31]} 29. Rxd7+ {[%emt 0:00:26]} Kc8 {[%emt 0:02:03]} 30. Qd4 {[%emt 0:00:57]} Qxd4 {[%emt 0:00:46]} 31. Rxd4 {[%emt 0:00:08]} Rxb2 {[%emt 0:00:42]} 32. Bxc6 {[%emt 0:01:03]} Kc7 {[%emt 0:00:32]} 33. Be8 {[%emt 0:00:29]} 1-0

[Event "19th IPCA WCC 2019"]
[Site "Ruzomberok"]
[Date "2019.07.01"]
[Round "4.16"]
[White "Belak, Stefan"]
[Black "Glazar, Domagoj"]
[Result "0-1"]
[ECO "A45"]
[WhiteElo "1851"]
[BlackElo "2153"]
[Annotator "NA"]
[PlyCount "80"]
[EventDate "2019.06.28"]
[EventType "swiss"]
[EventCountry "SVK"]
[SourceTitle "playchess.com"]
[Source "ChessBase"]
[SourceQuality "1"]
[TimeControl "5400+30"]

1. d4 {[%emt 0:00:00]} Nf6 {[%emt 0:00:00]} 2. Bf4 {[%emt 0:00:00]} c5 {[%emt 0:00:09]} 3. e3 {[%emt 0:00:00]} g6 {[%emt 0:00:40]} 4. Nd2 {[%emt 0:01:21]} Bg7 {[%emt 0:01:05]} 5. c3 {[%emt 0:00:13]} O-O {[%emt 0:00:39]} 6. Be2 {[%emt 0:00:30]} d6 {[%emt 0:00:47]} 7. Ngf3 {[%emt 0:00:33]} b6 {[%emt 0:00:46]} 8. O-O {[%emt 0:02:47]} Bb7 {[%emt 0:00:34]} 9. h3 {[%emt 0:01:41]} Nbd7 {[%emt 0:00:27]} 10. Qb3 {[%emt 0:02:16]} Rc8 {[%emt 0:01:57]} 11. Rad1 {[%emt 0:00:55]} Qc7 {[%emt 0:02:16]} 12. Bh2 {[%emt 0:19:23]} Qb8 {[%emt 0:03:18]} 13. Qa4 {[%emt 0:07:26]} Bc6 {[%emt 0:03:43]} 14. Bb5 {[%emt 0:00:11]} Qb7 {[%emt 0:01:00]} 15. Bxc6 {[%emt 0:04:42]} Rxc6 {[%emt 0:00:14]} 16. Qb3 {[%emt 0:01:36]} b5 {[%emt 0:05:32]} 17. d5 {[%emt 0:04:53]} Rcc8 {[%emt 0:01:40]} 18. e4 {[%emt 0:00:13]} a5 {[%emt 0:02:49]} 19. Rfe1 {[%emt 0:01:21]} c4 {[%emt 0:04:25]} 20. Qc2 {[%emt 0:00:37]} Nc5 {[%emt 0:00:30]} 21. Nd4 {[%emt 0:00:05]} Nfd7 {[%emt 0:02:57]} 22. Nc6 {[%emt 0:02:41]} Rfe8 {[%emt 0:01:35]} 23. a3 {[%emt 0:01:39]} Nd3 {[%emt 0:02:28]} 24. Re3 {[%emt 0:00:58]} Qb6 {[%emt 0:02:03]} 25. Rxd3 {[%emt 0:06:13]} cxd3 {[%emt 0:00:13]} 26. Qxd3 {[%emt 0:00:04]} Nb8 {[%emt 0:03:20]} 27. Nd4 {[%emt 0:00:54]} b4 {[%emt 0:03:22]} 28. axb4 {[%emt 0:05:20]} axb4 {[%emt 0:00:40]} 29. Nc4 {[%emt 0:00:03]} Qc5 {[%emt 0:01:44]} 30. b3 {[%emt 0:01:29]} bxc3 {[%emt 0:00:50]} 31. Bf4 {[%emt 0:03:25]} Bxd4 {[%emt 0:07:08]} 32. Qxd4 {[%emt 0:00:16]} Qxd4 {[%emt 0:00:06]} 33. Rxd4 {[%emt 0:00:03]} Nd7 {[%emt 0:00:28]} 34. Na5 {[%emt 0:04:58]} c2 {[%emt 0:04:06]} 35. Nc6 {[%emt 0:00:12]} e5 {[%emt 0:07:21]} 36. dxe6 Rxc6 {[%emt 0:00:34]} 37. exd7 {[%emt 0:03:31]} c1=Q+ {[%emt 0:00:17]} 38. Bxc1 {[%emt 0:00:09]} Rxc1+ {[%emt 0:00:05]} 39. Kh2 {[%emt 0:00:01]} Rd8 {[%emt 0:00:21]} 40. Rxd6 {[%emt 0:00:14]} Rc7 {[%emt 0:00:16]} 0-1

[Event "19th IPCA WCC 2019"]
[Site "Ruzomberok"]
[Date "2019.07.01"]
[Round "4.17"]
[White "Korber, Antonin"]
[Black "Pamarthi Audietya Aazadh"]
[Result "0-1"]
[ECO "D00"]
[WhiteElo "1759"]
[BlackElo "1346"]
[Annotator "NA"]
[PlyCount "62"]
[EventDate "2019.06.28"]
[EventType "swiss"]
[EventCountry "SVK"]
[SourceTitle "playchess.com"]
[Source "ChessBase"]
[SourceQuality "1"]
[TimeControl "5400+30"]

1. d4 {[%emt 0:00:00]} d5 {[%emt 0:00:00]} 2. f4 {[%emt 0:00:00]} Nf6 {[%emt 0:00:00]} 3. Nf3 {[%emt 0:00:00]} Bf5 {[%emt 0:00:00]} 4. e3 {[%emt 0:00:14]} e6 {[%emt 0:00:00]} 5. Nbd2 {[%emt 0:00:33]} Be7 {[%emt 0:02:58]} 6. Be2 {[%emt 0:01:55]} Nbd7 {[%emt 0:00:29]} 7. O-O {[%emt 0:03:16]} h6 {[%emt 0:00:20]} 8. Ne5 {[%emt 0:01:49]} O-O {[%emt 0:00:18]} 9. Ndf3 {[%emt 0:01:50]} Ne4 {[%emt 0:00:18]} 10. c3 {[%emt 0:02:46]} c5 {[%emt 0:00:47]} 11. Bd3 {[%emt 0:02:30]} c4 {[%emt 0:01:15]} 12. Bc2 {[%emt 0:00:03]} Nb6 {[%emt 0:00:31]} 13. Nd2 {[%emt 0:00:50]} f6 {[%emt 0:04:15]} 14. Nef3 {[%emt 0:01:35]} Rc8 {[%emt 0:00:17]} 15. g3 {[%emt 0:16:44]} Bh3 {[%emt 0:02:29]} 16. Re1 {[%emt 0:00:51]} f5 {[%emt 0:01:30]} 17. Ne5 {[%emt 0:06:05]} Qe8 {[%emt 0:03:43]} 18. Ndf3 {[%emt 0:03:28]} a6 {[%emt 0:00:44]} 19. Qe2 {[%emt 0:04:09]} Nd7 {[%emt 0:00:58]} 20. Nxd7 {[%emt 0:05:51]} Qxd7 {[%emt 0:00:27]} 21. Kh1 {[%emt 0:03:00]} Qe8 {[%emt 0:00:58]} 22. Bxe4 {[%emt 0:04:50]} dxe4 {[%emt 0:00:40]} 23. Ne5 {[%emt 0:01:58]} b5 {[%emt 0:00:11]} 24. a4 {[%emt 0:03:24]} Bf6 {[%emt 0:00:25]} 25. axb5 {[%emt 0:01:25]} Bxe5 {[%emt 0:00:13]} 26. dxe5 {[%emt 0:02:12]} Bg4 {[%emt 0:00:33]} 27. Qf1 {[%emt 0:04:01]} Qxb5 {[%emt 0:00:29]} 28. h3 {[%emt 0:02:17]} Bf3+ {[%emt 0:00:10]} 29. Kh2 {[%emt 0:00:02]} Rfd8 {[%emt 0:00:19]} 30. b4 {[%emt 0:03:25]} Rd3 {[%emt 0:00:54]} 31. Ra5 {[%emt 0:01:23]} Qb6 {[%emt 0:00:20]} 0-1

[Event "19th IPCA WCC 2019"]
[Site "Ruzomberok"]
[Date "2019.07.01"]
[Round "4.18"]
[White "Sovietova, Kateryna"]
[Black "Frumin, Rebeka"]
[Result "1-0"]
[ECO "D02"]
[WhiteElo "1279"]
[BlackElo "1398"]
[Annotator "NA"]
[PlyCount "91"]
[EventDate "2019.06.28"]
[EventType "swiss"]
[EventCountry "SVK"]
[SourceTitle "playchess.com"]
[Source "ChessBase"]
[SourceQuality "1"]
[TimeControl "5400+30"]

1. d4 Nf6 2. Bf4 {[%emt 0:01:22]} d5 {[%emt 0:01:36]} 3. Nf3 {[%emt 0:00:58]} Nc6 {[%emt 0:01:48]} 4. h3 {[%emt 0:01:03]} g6 {[%emt 0:02:05]} 5. e3 {[%emt 0:00:22]} a6 {[%emt 0:00:53]} 6. c3 {[%emt 0:03:46]} Ne4 {[%emt 0:03:00]} 7. Bd3 {[%emt 0:01:29]} f5 {[%emt 0:02:26]} 8. O-O {[%emt 0:01:55]} Bd7 {[%emt 0:01:33]} 9. Qb3 {[%emt 0:07:35]} e6 {[%emt 0:03:41]} 10. Rd1 {[%emt 0:04:12]} Na5 {[%emt 0:02:15]} 11. Qc2 {[%emt 0:00:36]} g5 {[%emt 0:00:29]} 12. Be5 {[%emt 0:09:41]} Rg8 {[%emt 0:00:38]} 13. Bh2 {[%emt 0:01:14]} g4 {[%emt 0:01:22]} 14. hxg4 {[%emt 0:01:08]} fxg4 {[%emt 0:02:04]} 15. Bxe4 {[%emt 0:06:39]} dxe4 {[%emt 0:00:59]} 16. Ne5 {[%emt 0:01:30]} Bd6 {[%emt 0:02:21]} 17. Nd2 {[%emt 0:02:59]} Qg5 {[%emt 0:02:01]} 18. Nxe4 {[%emt 0:03:04]} Qh6 {[%emt 0:02:07]} 19. Nxd6+ {[%emt 0:01:45]} cxd6 {[%emt 0:00:25]} 20. Nxd7 {[%emt 0:01:43]} Kxd7 {[%emt 0:00:22]} 21. Qa4+ {[%emt 0:01:51]} Nc6 {[%emt 0:00:20]} 22. Qa3 {[%emt 0:04:32]} Qf8 {[%emt 0:01:25]} 23. d5 {[%emt 0:03:39]} exd5 {[%emt 0:01:18]} 24. Rxd5 {[%emt 0:01:13]} Rg6 {[%emt 0:01:36]} 25. Rad1 {[%emt 0:01:03]} Ke8 {[%emt 0:01:05]} 26. Rxd6 {[%emt 0:05:01]} Rxd6 {[%emt 0:00:37]} 27. Rxd6 {[%emt 0:00:20]} Qf5 {[%emt 0:01:35]} 28. Bf4 {[%emt 0:05:39]} Rd8 {[%emt 0:05:55]} 29. Rxd8+ {[%emt 0:01:17]} Nxd8 {[%emt 0:00:12]} 30. c4 {[%emt 0:05:59]} Qb1+ {[%emt 0:03:25]} 31. Kh2 {[%emt 0:00:14]} Qc2 {[%emt 0:00:33]} 32. Bg5 {[%emt 0:03:28]} Nc6 {[%emt 0:01:04]} 33. Qc5 {[%emt 0:08:35]} Qxf2 {[%emt 0:00:47]} 34. b3 {[%emt 0:02:42]} Qxa2 {[%emt 0:01:43]} 35. Qb6 {[%emt 0:01:03]} Qa5 {[%emt 0:07:06]} 36. Qxb7 {[%emt 0:01:33]} Qe5+ {[%emt 0:00:36]} 37. Bf4 {[%emt 0:01:11]} Qf6 {[%emt 0:02:30]} 38. Qxh7 {[%emt 0:00:51]} Nb4 {[%emt 0:01:28]} 39. Qh5+ {[%emt 0:01:05]} Kf8 {[%emt 0:00:29]} 40. Qc5+ {[%emt 0:00:52]} Kg8 {[%emt 0:00:24]} 41. Qxb4 {[%emt 0:00:17]} Qh8+ {[%emt 0:00:59]} 42. Kg3 {[%emt 0:00:33]} Qa1 {[%emt 0:00:22]} 43. Qb8+ {[%emt 0:01:08]} Kf7 {[%emt 0:00:13]} 44. Qc7+ {[%emt 0:00:21]} Ke8 {[%emt 0:00:17]} 45. Qe5+ {[%emt 0:01:00]} Qxe5 {[%emt 0:00:23]} 46. Bxe5 {[%emt 0:00:05]} 1-0

[Event "19th IPCA WCC 2019"]
[Site "Ruzomberok"]
[Date "2019.07.01"]
[Round "4.20"]
[White "Pilimon, Zbigniew"]
[Black "Wollner, Bohus"]
[Result "1-0"]
[ECO "D06"]
[WhiteElo "1670"]
[BlackElo "1222"]
[Annotator "NA"]
[PlyCount "41"]
[EventDate "2019.06.28"]
[EventType "swiss"]
[EventCountry "SVK"]
[SourceTitle "playchess.com"]
[Source "ChessBase"]
[SourceQuality "1"]
[TimeControl "5400+30"]

1. d4 {[%emt 0:00:00]} d5 {[%emt 0:00:57]} 2. c4 {[%emt 0:00:00]} Nf6 {[%emt 0:00:34]} 3. cxd5 {[%emt 0:00:04]} Nxd5 {[%emt 0:01:37]} 4. e4 {[%emt 0:00:12]} Nb6 {[%emt 0:02:35]} 5. Bb5+ {[%emt 0:02:35]} Bd7 {[%emt 0:00:38]} 6. Be2 {[%emt 0:00:20]} e6 {[%emt 0:00:56]} 7. Nf3 {[%emt 0:00:17]} Bb4+ {[%emt 0:06:58]} 8. Nc3 {[%emt 0:00:17]} Nc6 {[%emt 0:12:53]} 9. O-O {[%emt 0:02:53]} Be7 {[%emt 0:01:10]} 10. Bf4 {[%emt 0:00:50]} h6 {[%emt 0:04:10]} 11. Rc1 {[%emt 0:00:42]} Bd6 {[%emt 0:05:14]} 12. Bxd6 {[%emt 0:03:35]} cxd6 {[%emt 0:00:17]} 13. Nb5 {[%emt 0:00:21]} Nc8 {[%emt 0:01:19]} 14. d5 {[%emt 0:00:29]} N6e7 {[%emt 0:02:23]} 15. Nc7+ {[%emt 0:00:32]} Kf8 {[%emt 0:00:24]} 16. Nxa8 {[%emt 0:01:21]} e5 {[%emt 0:00:36]} 17. Nc7 {[%emt 0:02:10]} Kg8 {[%emt 0:03:54]} 18. Nb5 {[%emt 0:00:39]} Kh7 {[%emt 0:00:25]} 19. Qc2 {[%emt 0:01:30]} a6 {[%emt 0:00:45]} 20. Nxd6 {[%emt 0:00:50]} Nxd6 {[%emt 0:00:27]} 21. Nxe5 1-0

[Event "19th IPCA WCC 2019"]
[Site "Ruzomberok"]
[Date "2019.07.01"]
[Round "4.21"]
[White "Engel, Katalin"]
[Black "Zicho, Anton"]
[Result "0-1"]
[ECO "D10"]
[WhiteElo "1537"]
[BlackElo "1662"]
[Annotator "NA"]
[PlyCount "160"]
[EventDate "2019.06.28"]
[EventType "swiss"]
[EventCountry "SVK"]
[SourceTitle "playchess.com"]
[Source "ChessBase"]
[SourceQuality "1"]
[TimeControl "5400+30"]

1. d4 d5 {[%emt 0:00:00]} 2. c4 {[%emt 0:02:17]} c6 {[%emt 0:00:21]} 3. Nc3 {[%emt 0:00:06]} Nf6 {[%emt 0:01:43]} 4. b3 {[%emt 0:00:14]} Bg4 {[%emt 0:00:48]} 5. Nf3 {[%emt 0:00:41]} e6 {[%emt 0:00:31]} 6. Bg5 {[%emt 0:00:14]} Be7 {[%emt 0:02:09]} 7. h3 {[%emt 0:05:31]} Bh5 {[%emt 0:01:03]} 8. g4 {[%emt 0:00:28]} Bg6 {[%emt 0:00:23]} 9. Bg2 {[%emt 0:00:18]} Ne4 {[%emt 0:03:05]} 10. Bxe7 {[%emt 0:00:40]} Qxe7 {[%emt 0:00:15]} 11. Nxe4 {[%emt 0:00:36]} Bxe4 {[%emt 0:00:30]} 12. O-O {[%emt 0:00:25]} Nd7 {[%emt 0:00:55]} 13. Qd2 {[%emt 0:01:11]} O-O {[%emt 0:02:23]} 14. Ng5 {[%emt 0:01:11]} Bxg2 {[%emt 0:03:29]} 15. Kxg2 {[%emt 0:00:07]} h6 {[%emt 0:00:19]} 16. Nf3 {[%emt 0:00:42]} Rfe8 {[%emt 0:10:34]} 17. Rae1 {[%emt 0:00:53]} Nf6 {[%emt 0:03:28]} 18. c5 {[%emt 0:05:07]} Ne4 {[%emt 0:07:51]} 19. Qd3 {[%emt 0:02:58]} f5 {[%emt 0:08:02]} 20. Ne5 {[%emt 0:01:23]} Qh4 {[%emt 0:02:55]} 21. Qe3 {[%emt 0:03:34]} Kh7 {[%emt 0:03:19]} 22. Rh1 {[%emt 0:07:34]} Rf8 {[%emt 0:00:19]} 23. Ref1 {[%emt 0:03:58]} f4 {[%emt 0:03:45]} 24. Qd3 {[%emt 0:06:26]} g6 {[%emt 0:06:15]} 25. Nf3 {[%emt 0:02:46]} Qf6 {[%emt 0:00:59]} 26. h4 {[%emt 0:06:42]} Kg7 {[%emt 0:04:13]} 27. Ne5 {[%emt 0:10:39]} Rad8 {[%emt 0:08:48]} 28. Rfg1 {[%emt 0:03:23]} a6 {[%emt 0:02:27]} 29. h5 {[%emt 0:00:30]} g5 {[%emt 0:00:30]} 30. Rh3 {[%emt 0:04:38]} Rg8 {[%emt 0:03:06]} 31. Rf3 {[%emt 0:03:07]} Nxc5 {[%emt 0:00:49]} 32. Qg6+ {[%emt 0:01:41]} Qxg6 {[%emt 0:00:10]} 33. Nxg6 {[%emt 0:00:37]} Ne4 {[%emt 0:03:42]} 34. Rd3 {[%emt 0:02:50]} Rd7 {[%emt 0:01:00]} 35. b4 {[%emt 0:01:29]} Rf7 {[%emt 0:00:50]} 36. f3 {[%emt 0:01:25]} Nd6 {[%emt 0:00:23]} 37. Ne5 {[%emt 0:00:49]} Re7 {[%emt 0:00:49]} 38. Rc1 {[%emt 0:01:14]} Nf7 {[%emt 0:02:48]} 39. Ng6 {[%emt 0:01:41]} Rd7 {[%emt 0:01:55]} 40. e3 {[%emt 0:00:50]} fxe3 {[%emt 0:01:26]} 41. Rxe3 {[%emt 0:00:09]} Re8 {[%emt 0:02:31]} 42. Kg3 {[%emt 0:00:27]} Kf6 {[%emt 0:01:08]} 43. f4 {[%emt 0:00:07]} gxf4+ {[%emt 0:00:44]} 44. Nxf4 {[%emt 0:00:47]} e5 {[%emt 0:01:27]} 45. Ng6 {[%emt 0:02:20]} e4 {[%emt 0:00:54]} 46. Rf1+ {[%emt 0:01:48]} Kg7 {[%emt 0:00:30]} 47. Rf5 {[%emt 0:00:30]} Ng5 {[%emt 0:01:23]} 48. a4 {[%emt 0:03:54]} Nf3 49. Rf4 Nxd4 {[%emt 0:00:46]} 50. Nh4 {[%emt 0:01:17]} Rf8 {[%emt 0:01:19]} 51. Rxf8 {[%emt 0:00:49]} Kxf8 {[%emt 0:00:03]} 52. Kf4 {[%emt 0:00:58]} Rf7+ {[%emt 0:01:33]} 53. Ke5 {[%emt 0:00:16]} Nf3+ {[%emt 0:01:06]} 54. Kd6 Nxh4 {[%emt 0:00:27]} 55. Kc5 {[%emt 0:02:18]} Ke7 {[%emt 0:01:04]} 56. Kb6 {[%emt 0:00:21]} Kd6 {[%emt 0:00:11]} 57. Rg3 {[%emt 0:00:43]} Nf3 {[%emt 0:00:49]} 58. Rg2 {[%emt 0:00:36]} d4 59. b5 {[%emt 0:01:35]} axb5 {[%emt 0:00:40]} 60. axb5 {[%emt 0:00:06]} cxb5 {[%emt 0:00:04]} 61. Kxb5 {[%emt 0:00:06]} Kd5 {[%emt 0:01:29]} 62. Rc2 {[%emt 0:00:21]} e3 {[%emt 0:01:00]} 63. Rc5+ {[%emt 0:00:22]} Ke4 {[%emt 0:00:21]} 64. Rc8 {[%emt 0:00:49]} Kd3 {[%emt 0:00:34]} 65. Re8 {[%emt 0:00:37]} Kd2 {[%emt 0:00:23]} 66. Kc4 {[%emt 0:00:10]} d3 {[%emt 0:00:12]} 67. Re6 {[%emt 0:00:32]} Rc7+ {[%emt 0:00:17]} 68. Kb3 {[%emt 0:00:09]} Rc6 {[%emt 0:00:38]} 69. Re8 {[%emt 0:00:45]} e2 {[%emt 0:00:15]} 70. Kb4 {[%emt 0:00:31]} e1=Q 71. Rxe1 Kxe1 72. Kb5 d2 {[%emt 0:02:42]} 73. g5 {[%emt 0:00:37]} Re6 {[%emt 0:00:18]} 74. g6 {[%emt 0:00:00]} Re7 {[%emt 0:00:33]} 75. Kb6 {[%emt 0:00:00]} Nd4 {[%emt 0:00:20]} 76. Kc5 {[%emt 0:00:12]} Nc6 {[%emt 0:00:10]} 77. g7 {[%emt 0:00:19]} Rxg7 {[%emt 0:00:05]} 78. Kb6 {[%emt 0:00:11]} d1=Q {[%emt 0:01:03]} 79. Kc5 {[%emt 0:00:16]} Qd4+ {[%emt 0:00:35]} 80. Kb5 {[%emt 0:00:09]} Rg5# {[%emt 0:00:56]} 0-1

[Event "19th IPCA WCC 2019"]
[Site "Ruzomberok"]
[Date "2019.07.01"]
[Round "4.22"]
[White "Kostova, Erika"]
[Black "Spirka, Jan"]
[Result "0-1"]
[ECO "C00"]
[WhiteElo "1210"]
[BlackElo "1366"]
[Annotator "NA"]
[PlyCount "136"]
[EventDate "2019.06.28"]
[EventType "swiss"]
[EventCountry "SVK"]
[SourceTitle "playchess.com"]
[Source "ChessBase"]
[SourceQuality "1"]
[TimeControl "5400+30"]

1. d4 {[%emt 0:00:00]} e6 {[%emt 0:00:15]} 2. e4 {[%emt 0:00:09]} d6 {[%emt 0:00:37]} 3. Nf3 {[%emt 0:00:22]} Nf6 {[%emt 0:01:06]} 4. Nc3 {[%emt 0:00:57]} Be7 {[%emt 0:00:52]} 5. Be2 {[%emt 0:01:36]} c6 {[%emt 0:04:30]} 6. Bf4 {[%emt 0:01:32]} Nbd7 {[%emt 0:01:37]} 7. O-O {[%emt 0:00:54]} O-O {[%emt 0:00:39]} 8. Re1 {[%emt 0:02:42]} h6 {[%emt 0:01:30]} 9. Qd3 {[%emt 0:02:00]} Re8 {[%emt 0:03:35]} 10. Bd1 {[%emt 0:03:18]} Nh7 {[%emt 0:04:31]} 11. e5 {[%emt 0:02:13]} d5 {[%emt 0:01:00]} 12. Ne2 {[%emt 0:00:27]} Ndf8 {[%emt 0:00:34]} 13. c3 {[%emt 0:01:00]} Ng6 {[%emt 0:02:38]} 14. Bc2 {[%emt 0:00:38]} Nhf8 {[%emt 0:00:43]} 15. Kh1 {[%emt 0:01:25]} c5 {[%emt 0:02:38]} 16. Nfg1 {[%emt 0:01:28]} c4 {[%emt 0:01:51]} 17. Qh3 {[%emt 0:03:10]} Nxf4 {[%emt 0:01:56]} 18. Nxf4 {[%emt 0:00:41]} Bg5 {[%emt 0:00:18]} 19. Nh5 {[%emt 0:05:21]} Bd7 {[%emt 0:04:19]} 20. Nf3 {[%emt 0:01:47]} Nh7 {[%emt 0:00:49]} 21. Bxh7+ {[%emt 0:03:06]} Kxh7 22. Qg3 Rg8 {[%emt 0:03:40]} 23. h4 {[%emt 0:03:00]} Be7 {[%emt 0:00:55]} 24. Rg1 Rc8 {[%emt 0:03:19]} 25. Qf4 {[%emt 0:06:15]} Be8 {[%emt 0:00:35]} 26. g3 {[%emt 0:01:28]} g5 {[%emt 0:00:16]} 27. Nf6+ {[%emt 0:04:02]} Bxf6 {[%emt 0:00:19]} 28. Qxf6 {[%emt 0:01:03]} Qd7 {[%emt 0:04:25]} 29. hxg5 {[%emt 0:00:36]} Rg6 {[%emt 0:00:57]} 30. Qf4 {[%emt 0:00:16]} Qe7 {[%emt 0:01:31]} 31. Kg2 {[%emt 0:01:04]} hxg5 32. Qd2 Kg7 {[%emt 0:06:43]} 33. g4 {[%emt 0:00:59]} Bd7 {[%emt 0:01:33]} 34. Rh1 {[%emt 0:01:02]} Rf8 {[%emt 0:01:18]} 35. Rh5 {[%emt 0:01:12]} f6 36. Rah1 Rg8 {[%emt 0:01:53]} 37. Rh7+ {[%emt 0:01:09]} Kf8 {[%emt 0:00:14]} 38. Rxe7 {[%emt 0:03:00]} Kxe7 39. exf6+ {[%emt 0:00:24]} Kxf6 {[%emt 0:01:48]} 40. Ne5 {[%emt 0:00:30]} R6g7 {[%emt 0:01:20]} 41. Nxd7+ Rxd7 42. f4 {[%emt 0:01:32]} Rdg7 {[%emt 0:00:46]} 43. Rh6+ Kf7 44. fxg5 Rxg5 45. Qf4+ {[%emt 0:01:58]} Ke7 {[%emt 0:03:59]} 46. Qf6+ Kd7 47. Qxe6+ {[%emt 0:02:01]} Kc7 {[%emt 0:03:14]} 48. Rh7+ Kb8 {[%emt 0:00:20]} 49. Qd6+ {[%emt 0:01:09]} Ka8 {[%emt 0:00:39]} 50. Qd8+ {[%emt 0:01:43]} Rxd8 51. Kf3 Rdg8 {[%emt 0:00:50]} 52. Rh4 {[%emt 0:01:05]} Re8 {[%emt 0:00:39]} 53. Kf4 {[%emt 0:00:17]} Rgg8 {[%emt 0:00:01]} 54. Rh5 {[%emt 0:03:20]} Rgf8+ 55. Rf5 {[%emt 0:00:30]} Rh8 {[%emt 0:01:24]} 56. Rxd5 {[%emt 0:00:39]} b6 {[%emt 0:00:14]} 57. b3 {[%emt 0:00:30]} cxb3 {[%emt 0:00:30]} 58. axb3 {[%emt 0:00:16]} Ref8+ {[%emt 0:00:11]} 59. Rf5 {[%emt 0:00:17]} Rc8 {[%emt 0:01:03]} 60. c4 {[%emt 0:01:55]} Rh3 {[%emt 0:00:30]} 61. c5 {[%emt 0:00:30]} Rxb3 {[%emt 0:00:30]} 62. g5 {[%emt 0:01:11]} Rb4 63. Ke4 bxc5 {[%emt 0:00:00]} 64. g6 {[%emt 0:01:18]} Rxd4+ {[%emt 0:00:06]} 65. Ke5 {[%emt 0:00:16]} Re8+ {[%emt 0:00:25]} 66. Kf6 {[%emt 0:00:21]} Rf8+ {[%emt 0:00:15]} 67. Kg5 Rxf5+ {[%emt 0:00:21]} 68. Kxf5 {[%emt 0:00:53]} Rd8 {[%emt 0:00:12]} 0-1

[Event "19th IPCA WCC 2019"]
[Site "Ruzomberok"]
[Date "2019.07.02"]
[Round "5.1"]
[White "Yarmonov, Igor"]
[Black "Shashikant, Kutwal"]
[Result "1-0"]
[ECO "A48"]
[WhiteElo "2389"]
[BlackElo "2176"]
[Annotator "NA"]
[PlyCount "103"]
[EventDate "2019.06.28"]
[EventType "swiss"]
[EventCountry "SVK"]
[SourceTitle "playchess.com"]
[Source "ChessBase"]
[SourceQuality "1"]
[TimeControl "5400+30"]

1. d4 {[%emt 0:00:00]} Nf6 {[%emt 0:00:00]} 2. Nf3 {[%emt 0:00:00]} g6 {[%emt 0:00:00]} 3. Bf4 {[%emt 0:00:16]} Bg7 {[%emt 0:00:14]} 4. c3 {[%emt 0:00:04]} d6 {[%emt 0:01:03]} 5. h3 {[%emt 0:00:45]} O-O {[%emt 0:00:57]} 6. Nbd2 {[%emt 0:00:18]} Nbd7 {[%emt 0:03:44]} 7. e4 {[%emt 0:13:23]} e5 {[%emt 0:00:38]} 8. dxe5 {[%emt 0:00:04]} dxe5 {[%emt 0:00:10]} 9. Be3 {[%emt 0:00:28]} Qe7 {[%emt 0:01:21]} 10. Qc2 {[%emt 0:01:48]} b6 {[%emt 0:01:31]} 11. g4 {[%emt 0:00:57]} Bb7 {[%emt 0:04:40]} 12. g5 {[%emt 0:07:58]} Nh5 {[%emt 0:02:06]} 13. O-O-O {[%emt 0:02:17]} Nc5 {[%emt 0:06:37]} 14. h4 {[%emt 0:00:14]} a5 {[%emt 0:03:53]} 15. Ng1 {[%emt 0:07:12]} Rfd8 {[%emt 0:06:34]} 16. Ne2 {[%emt 0:00:21]} a4 {[%emt 0:07:50]} 17. Ng3 {[%emt 0:00:35]} Nf4 {[%emt 0:09:35]} 18. f3 {[%emt 0:01:30]} a3 {[%emt 0:07:41]} 19. b3 {[%emt 0:00:33]} Ncd3+ {[%emt 0:01:53]} 20. Bxd3 {[%emt 0:00:15]} Nxd3+ {[%emt 0:00:10]} 21. Kb1 {[%emt 0:00:39]} Nb2 {[%emt 0:00:58]} 22. Rde1 {[%emt 0:02:04]} Ba6 {[%emt 0:01:26]} 23. Ka1 {[%emt 0:00:03]} Bd3 {[%emt 0:03:49]} 24. Qc1 {[%emt 0:00:03]} b5 {[%emt 0:03:23]} 25. Rh2 {[%emt 0:02:44]} c5 {[%emt 0:16:07]} 26. Nh1 {[%emt 0:03:28]} c4 {[%emt 0:04:48]} 27. b4 {[%emt 0:00:50]} Na4 {[%emt 0:00:19]} 28. Nf2 {[%emt 0:00:31]} Bf8 {[%emt 0:04:52]} 29. h5 {[%emt 0:16:12]} Nxc3 {[%emt 0:02:59]} 30. Qxc3 {[%emt 0:01:06]} Qxb4 {[%emt 0:00:07]} 31. Qxb4 {[%emt 0:01:01]} Bxb4 {[%emt 0:00:02]} 32. Rc1 {[%emt 0:00:03]} Be2 {[%emt 0:02:33]} 33. Nb1 {[%emt 0:03:37]} Bxf3 {[%emt 0:00:42]} 34. hxg6 {[%emt 0:00:28]} fxg6 {[%emt 0:00:50]} 35. Nc3 {[%emt 0:00:29]} Bxc3+ {[%emt 0:01:27]} 36. Rxc3 {[%emt 0:00:03]} Be2 {[%emt 0:01:16]} 37. Rc2 {[%emt 0:01:09]} Bf1 {[%emt 0:01:07]} 38. Rh1 {[%emt 0:03:23]} Bd3 {[%emt 0:00:30]} 39. Rd2 {[%emt 0:00:25]} Rf8 {[%emt 0:00:48]} 40. Nxd3 {[%emt 0:00:53]} cxd3 {[%emt 0:00:01]} 41. Rxd3 {[%emt 0:00:46]} Ra4 {[%emt 0:01:02]} 42. Bc5 {[%emt 0:00:51]} Rc8 {[%emt 0:00:11]} 43. Bxa3 {[%emt 0:01:34]} Rxe4 {[%emt 0:00:36]} 44. Rd7 {[%emt 0:02:04]} b4 {[%emt 0:00:52]} 45. Bb2 {[%emt 0:00:28]} Rc2 {[%emt 0:00:35]} 46. Kb1 {[%emt 0:00:57]} Rc5 {[%emt 0:00:24]} 47. Rdxh7 {[%emt 0:00:43]} Rg4 {[%emt 0:00:18]} 48. Bc1 {[%emt 0:01:22]} Rg2 {[%emt 0:00:50]} 49. Rb7 {[%emt 0:00:58]} Rc4 {[%emt 0:00:10]} 50. Rd1 {[%emt 0:01:27]} Rf2 {[%emt 0:00:20]} 51. Rd8+ {[%emt 0:00:58]} Rf8 {[%emt 0:00:05]} 52. Rxf8+ {[%emt 0:00:25]} 1-0